[Event "44th Chess Olympiad Women 2022"]
[Site "Chennai"]
[Date "2022.07.31"]
[Round "3.62"]
[White "Roberts, Tallulah"]
[Black "Ibtihal Mohammed"]
[Result "0-1"]
[WhiteElo "1536"]
[BlackElo "1445"]
[Annotator "NA RC"]
[PlyCount "114"]
[EventDate "2022.??.??"]
[TimeControl "60"]

1. c4 {[%emt 0:00:01]} c5 {[%emt 0:00:09]} 2. Nf3 {[%emt 0:00:04]} Nc6 {
[%emt 0:00:07]} 3. Nc3 {[%emt 0:00:05]} e5 {[%emt 0:00:08]} 4. g3 {[%emt 0:00:
00]} g6 {[%emt 0:00:12]} 5. Bg2 {[%emt 0:00:05]} Bg7 {[%emt 0:00:10]} 6. O-O {
[%emt 0:00:17]} Nge7 {[%emt 0:00:05]} 7. d3 {[%emt 0:00:55]} O-O {[%emt 0:00:
00]} 8. a3 {[%emt 0:00:57]} a5 {[%emt 0:00:08]} 9. Rb1 {[%emt 0:05:42]} d6 {
[%emt 0:04:29]} 10. Bg5 {[%emt 0:04:56]} f6 {[%emt 0:00:07]} 11. Bd2 {[%emt 0:
00:00]} Be6 {[%emt 0:03:54]} 12. h3 {[%emt 0:09:48]} Rb8 {[%emt 0:07:15]} 13.
Ne1 {[%emt 0:02:21]} d5 {[%emt 0:07:44]} 14. cxd5 {[%emt 0:01:40]} Nxd5 {
[%emt 0:04:11]} 15. Qc1 {[%emt 0:08:32]} Re8 {[%emt 0:03:45]} 16. e3 {[%emt 0:
00:00]} b5 {[%emt 0:09:13]} 17. Nxd5 {[%emt 0:00:34]} Bxd5 {[%emt 0:00:17]} 18.
Qxc5 {[%emt 0:00:48]} Bxg2 {[%emt 0:00:52]} 19. Kxg2 {[%emt 0:00:10]} Qb6 {
[%emt 0:07:34]} 20. Rc1 {[%emt 0:16:03]} Qxc5 {[%emt 0:04:14]} 21. Rxc5 {
[%emt 0:00:04]} Rec8 {[%emt 0:00:18]} 22. Nf3 {[%emt 0:09:20]} Bf8 {[%emt 0:00:
00]} 23. Rc2 {[%emt 0:05:15]} b4 {[%emt 0:07:06]} 24. a4 {[%emt 0:10:33]} Rb7 {
[%emt 0:07:38]} 25. Rfc1 {[%emt 0:00:40]} Rbc7 {[%emt 0:00:07]} 26. b3 {
[%emt 0:03:13]} Bd6 {[%emt 0:00:24]} 27. Nh2 {[%emt 0:05:11]} Nd8 {[%emt 0:00:
00]} 28. Rxc7 {[%emt 0:00:53]} Rxc7 {[%emt 0:00:27]} 29. Rxc7 {[%emt 0:04:19]}
Bxc7 {[%emt 0:00:06]} 30. d4 {[%emt 0:00:58]} exd4 {[%emt 0:01:16]} 31. exd4 {
[%emt 0:00:02]} Ne6 {[%emt 0:00:10]} 32. Be3 {[%emt 0:00:46]} Bd6 {[%emt 0:00:
00]} 33. f4 {[%emt 0:00:59]} Kf7 {[%emt 0:00:21]} 34. Kf3 {[%emt 0:00:40]} f5 {
[%emt 0:00:39]} 35. Nf1 {[%emt 0:02:51]} Nc7 {[%emt 0:00:20]} 36. Nd2 {[%emt 0:
00:00]} Nd5 {[%emt 0:00:23]} 37. Bf2 {[%emt 0:00:48]} Ke6 {[%emt 0:02:23]} 38.
Nc4 {[%emt 0:00:17]} Bc7 {[%emt 0:00:07]} 39. Be1 {[%emt 0:02:23]} Bd8 {
[%emt 0:00:16]} 40. g4 {[%emt 0:00:42]} Bc7 {[%emt 0:01:42]} 41. Bd2 {[%emt 0:
00:00]} Nf6 {[%emt 0:32:37]} 42. gxf5+ {[%emt 0:00:00]} Kxf5 {[%emt 0:00:00]}
43. Bxb4 {[%emt 0:00:00]} axb4 {[%emt 0:00:00]} 44. a5 {[%emt 0:00:00]} Nd5 {
[%emt 0:00:00]} 45. a6 {[%emt 0:00:00]} Bb8 {[%emt 0:00:00]} 46. Ne5 {[%emt 0:
00:00]} Nc7 {[%emt 0:00:00]} 47. d5 {[%emt 0:00:00]} Nxa6 {[%emt 0:00:00]} 48.
Nc6 {[%emt 0:00:00]} Bxf4 {[%emt 0:00:00]} 49. Nd4+ {[%emt 0:00:00]} Ke5 {
[%emt 0:00:00]} 50. Nc2 {[%emt 0:00:00]} Bg5 {[%emt 0:00:00]} 51. Kg4 {[%emt 0:
00:00]} Be7 {[%emt 0:00:00]} 52. d6 {[%emt 0:00:00]} Bxd6 {[%emt 0:00:00]} 53.
Kg5 {[%emt 0:00:00]} Bf8 {[%emt 0:00:00]} 54. h4 {[%emt 0:00:00]} Nc7 {[%emt 0:
00:00]} 55. Nxb4 {[%emt 0:00:00]} Bxb4 {[%emt 0:00:00]} 56. Kh6 {[%emt 0:00:00]
} Kf6 {[%emt 0:00:00]} 57. Kxh7 {[%emt 0:00:07]} Be1 {[%emt 0:00:00]} 0-1

[Event "44th Chess Olympiad Women 2022"]
[Site "Chennai"]
[Date "2022.07.31"]
[Round "3.63"]
[White "Ahmed, Najla"]
[Black "Beukes Jamie-Nicole"]
[Result "0-1"]
[WhiteElo "1176"]
[BlackElo "1231"]
[Annotator "NA"]
[PlyCount "110"]
[EventDate "2022.??.??"]
[TimeControl "60"]

1. c4 {[%emt 0:00:04]} f5 {[%emt 0:00:15]} 2. Qc2 {[%emt 0:04:52]} e6 {[%emt 0:
00:00]} 3. Nf3 {[%emt 0:02:28]} Nf6 {[%emt 0:01:43]} 4. Nc3 {[%emt 0:01:31]} c6
{[%emt 0:01:32]} 5. e3 {[%emt 0:04:47]} d5 {[%emt 0:00:52]} 6. d4 {[%emt 0:00:
00]} Bd6 {[%emt 0:01:37]} 7. Ne5 {[%emt 0:01:07]} O-O {[%emt 0:02:27]} 8. Bd2 {
[%emt 0:07:24]} Nbd7 {[%emt 0:03:30]} 9. f4 {[%emt 0:01:44]} Ne4 {[%emt 0:00:
00]} 10. g3 {[%emt 0:04:43]} Qe8 {[%emt 0:03:09]} 11. Nxe4 {[%emt 0:02:49]}
fxe4 {[%emt 0:03:04]} 12. Be2 {[%emt 0:02:07]} Nf6 {[%emt 0:13:13]} 13. O-O-O {
[%emt 0:07:17]} b5 {[%emt 0:09:21]} 14. c5 {[%emt 0:04:52]} Bc7 {[%emt 0:03:01]
} 15. Kb1 {[%emt 0:02:30]} a5 {[%emt 0:05:45]} 16. g4 {[%emt 0:06:07]} Bxe5 {
[%emt 0:08:18]} 17. fxe5 {[%emt 0:03:58]} Nd7 {[%emt 0:01:17]} 18. Rdf1 {
[%emt 0:01:35]} Bb7 {[%emt 0:04:35]} 19. h4 {[%emt 0:06:09]} b4 {[%emt 0:06:33]
} 20. Qd1 {[%emt 0:00:25]} Ba6 {[%emt 0:04:41]} 21. Bxa6 {[%emt 0:07:04]} Rxa6
{[%emt 0:00:12]} 22. Qa4 {[%emt 0:00:25]} Qc8 {[%emt 0:07:53]} 23. Rxf8+ {
[%emt 0:00:55]} Nxf8 {[%emt 0:00:44]} 24. g5 {[%emt 0:01:22]} g6 {[%emt 0:00:
00]} 25. Rf1 {[%emt 0:05:40]} Ra8 {[%emt 0:02:04]} 26. Rf6 {[%emt 0:00:43]} Qa6
{[%emt 0:00:33]} 27. Qc2 {[%emt 0:03:01]} Qe2 {[%emt 0:02:21]} 28. Qc1 {
[%emt 0:02:49]} Qb5 {[%emt 0:01:22]} 29. Qf1 {[%emt 0:05:13]} Qb7 {[%emt 0:00:
00]} 30. Qe2 {[%emt 0:01:19]} Re8 {[%emt 0:01:20]} 31. Qg4 {[%emt 0:01:27]} Qb5
{[%emt 0:00:28]} 32. Qd1 {[%emt 0:03:13]} Qd3+ {[%emt 0:00:15]} 33. Qc2 {
[%emt 0:00:24]} Qb5 {[%emt 0:00:44]} 34. Kc1 {[%emt 0:01:40]} Nd7 {[%emt 0:00:
00]} 35. Rf4 {[%emt 0:00:31]} Kg7 {[%emt 0:00:40]} 36. Rf2 {[%emt 0:00:41]} Rb8
{[%emt 0:00:31]} 37. b3 {[%emt 0:00:18]} Ra8 {[%emt 0:00:22]} 38. Kb2 {[%emt 0:
00:00]} a4 {[%emt 0:00:16]} 39. bxa4 {[%emt 0:00:24]} Rxa4 {[%emt 0:00:16]} 40.
Qb3 {[%emt 0:00:45]} Qa5 {[%emt 0:00:59]} 41. Qc2 {[%emt 0:31:16]} Rxa2+ {
[%emt 0:30:22]} 42. Kc1 {[%emt 0:00:08]} Rxc2+ {[%emt 0:01:01]} 43. Kxc2 {
[%emt 0:00:09]} Qa2+ {[%emt 0:00:17]} 44. Kd1 {[%emt 0:00:07]} b3 {[%emt 0:00:
00]} 45. Be1 {[%emt 0:00:16]} Qa1+ {[%emt 0:00:27]} 46. Ke2 {[%emt 0:00:21]}
Qc1 {[%emt 0:00:43]} 47. Bd2 {[%emt 0:00:51]} Qc2 {[%emt 0:00:18]} 48. Rf1 {
[%emt 0:00:08]} b2 {[%emt 0:00:28]} 49. h5 {[%emt 0:00:56]} gxh5 {[%emt 0:00:
00]} 50. Rf6 {[%emt 0:00:49]} Nxf6 {[%emt 0:00:14]} 51. gxf6+ {[%emt 0:00:05]}
Kf7 {[%emt 0:00:13]} 52. Ke1 {[%emt 0:00:20]} b1=Q+ {[%emt 0:00:23]} 53. Ke2 {
[%emt 0:00:07]} Qbd1+ {[%emt 0:00:43]} 54. Kf2 {[%emt 0:00:09]} Qf3+ {[%emt 0:
00:00]} 55. Ke1 {[%emt 0:00:19]} Qcd1# {[%emt 0:00:53]} 0-1

[Event "44th Chess Olympiad Women 2022"]
[Site "Chennai"]
[Date "2022.07.31"]
[Round "3.63"]
[White "Nepando, Jolly"]
[Black "Almusawi, Maram"]
[Result "0-1"]
[WhiteElo "1389"]
[BlackElo "1349"]
[Annotator "NA RC"]
[PlyCount "120"]
[EventDate "2022.??.??"]
[TimeControl "60"]

1. e4 {[%emt 0:00:19]} c6 {[%emt 0:00:18]} 2. d4 {[%emt 0:00:32]} d5 {[%emt 0:
00:00]} 3. Nd2 {[%emt 0:03:26]} dxe4 {[%emt 0:00:40]} 4. Nxe4 {[%emt 0:00:13]}
Nf6 {[%emt 0:03:28]} 5. Nxf6+ {[%emt 0:02:17]} exf6 {[%emt 0:00:12]} 6. Bc4 {
[%emt 0:01:11]} b5 {[%emt 0:04:06]} 7. Bb3 {[%emt 0:00:58]} a5 {[%emt 0:01:42]}
8. a4 {[%emt 0:00:49]} b4 {[%emt 0:03:53]} 9. c3 {[%emt 0:04:12]} Na6 {[%emt 0:
00:00]} 10. Ne2 {[%emt 0:04:38]} Bd6 {[%emt 0:01:18]} 11. O-O {[%emt 0:01:06]}
O-O {[%emt 0:01:28]} 12. Bf4 {[%emt 0:02:21]} Bg4 {[%emt 0:02:32]} 13. Bxd6 {
[%emt 0:00:18]} Qxd6 {[%emt 0:00:12]} 14. Qd2 {[%emt 0:01:13]} Kh8 {[%emt 0:00:
00]} 15. Rfe1 {[%emt 0:01:49]} Nc5 {[%emt 0:08:23]} 16. Bc4 {[%emt 0:07:49]}
Be6 {[%emt 0:01:45]} 17. cxb4 {[%emt 0:03:30]} axb4 {[%emt 0:00:58]} 18. Qxb4 {
[%emt 0:01:19]} Bxc4 {[%emt 0:01:43]} 19. Qxc5 {[%emt 0:03:26]} Qxc5 {[%emt 0:
00:00]} 20. dxc5 {[%emt 0:00:03]} Rab8 {[%emt 0:02:43]} 21. Rac1 {[%emt 0:00:
00]} Bd5 {[%emt 0:05:43]} 22. Nc3 {[%emt 0:02:44]} Be6 {[%emt 0:01:03]} 23. Re2
{[%emt 0:03:39]} Rb4 {[%emt 0:06:48]} 24. a5 {[%emt 0:28:26]} Ra8 {[%emt 0:00:
00]} 25. Rd2 {[%emt 0:02:30]} h6 {[%emt 0:01:30]} 26. Ra1 {[%emt 0:07:44]} Rc4
{[%emt 0:03:59]} 27. Ne2 {[%emt 0:10:02]} Rxc5 {[%emt 0:02:02]} 28. b4 {
[%emt 0:00:16]} Rc4 {[%emt 0:03:33]} 29. Rd4 {[%emt 0:02:00]} Rc2 {[%emt 0:00:
00]} 30. Nf4 {[%emt 0:01:46]} Bf5 {[%emt 0:01:31]} 31. Nd3 {[%emt 0:02:13]}
Bxd3 {[%emt 0:04:56]} 32. Rxd3 {[%emt 0:00:04]} c5 {[%emt 0:00:52]} 33. b5 {
[%emt 0:00:32]} Rxa5 {[%emt 0:00:29]} 34. Rb1 {[%emt 0:01:31]} Rxb5 {[%emt 0:
00:00]} 35. Re1 {[%emt 0:00:44]} Rbb2 {[%emt 0:01:18]} 36. Rd8+ {[%emt 0:00:45]
} Kh7 {[%emt 0:00:09]} 37. Rf1 {[%emt 0:00:33]} c4 {[%emt 0:01:05]} 38. g4 {
[%emt 0:00:02]} Rc3 {[%emt 0:01:00]} 39. Re1 {[%emt 0:01:05]} Rcb3 {[%emt 0:00:
00]} 40. Ree8 {[%emt 0:00:25]} c3 {[%emt 0:00:53]} 41. h4 {[%emt 0:30:11]} Kg6
{[%emt 0:30:09]} 42. h5+ {[%emt 0:00:38]} Kg5 {[%emt 0:00:08]} 43. Rd5+ {
[%emt 0:00:29]} f5 {[%emt 0:00:29]} 44. Rxf5+ {[%emt 0:00:50]} Kh4 {[%emt 0:00:
00]} 45. Kg2 {[%emt 0:00:35]} c2 {[%emt 0:00:17]} 46. Re4 {[%emt 0:00:13]} Rb4
{[%emt 0:00:54]} 47. Re1 {[%emt 0:00:23]} Rxg4+ {[%emt 0:00:10]} 48. Kf1 {
[%emt 0:00:00]} Rb1 {[%emt 0:00:00]} 49. Rc5 {[%emt 0:00:00]} Rxe1+ {[%emt 0:
00:00]} 50. Kxe1 {[%emt 0:00:00]} c1=Q+ {[%emt 0:00:00]} 51. Rxc1 {[%emt 0:00:
00]} Rg1+ {[%emt 0:00:00]} 52. Kd2 {[%emt 0:00:00]} Rxc1 {[%emt 0:00:00]} 53.
Kxc1 {[%emt 0:00:00]} Kxh5 {[%emt 0:00:00]} 54. Kd2 {[%emt 0:00:00]} g5 {
[%emt 0:00:00]} 55. Ke3 {[%emt 0:00:00]} f5 {[%emt 0:00:00]} 56. f4 {[%emt 0:
00:00]} Kg4 {[%emt 0:00:00]} 57. fxg5 {[%emt 0:00:00]} hxg5 {[%emt 0:00:00]}
58. Kf2 {[%emt 0:00:00]} Kh3 {[%emt 0:00:00]} 59. Kg1 {[%emt 0:00:00]} g4 {
[%emt 0:00:00]} 60. Kf2 {[%emt 0:00:00]} Kh2 {[%emt 0:00:00]} 0-1

[Event "44th Chess Olympiad Women 2022"]
[Site "Chennai"]
[Date "2022.07.31"]
[Round "3.64"]
[White "Abigail Karyah"]
[Black "Tsai, Sophie Yi-Hsuan"]
[Result "0-1"]
[WhiteElo "1455"]
[BlackElo "1131"]
[Annotator "NA RC"]
[PlyCount "66"]
[EventDate "2022.??.??"]
[TimeControl "60"]

1. e4 {[%emt 0:00:03]} c5 {[%emt 0:00:08]} 2. Nf3 {[%emt 0:00:07]} g6 {[%emt 0:
00:00]} 3. d4 {[%emt 0:00:22]} cxd4 {[%emt 0:00:04]} 4. Nxd4 {[%emt 0:00:07]}
Bg7 {[%emt 0:00:04]} 5. Nc3 {[%emt 0:01:16]} Nc6 {[%emt 0:00:06]} 6. Be3 {
[%emt 0:00:09]} Nf6 {[%emt 0:00:07]} 7. Be2 {[%emt 0:00:19]} O-O {[%emt 0:00:
00]} 8. O-O {[%emt 0:00:07]} d5 {[%emt 0:00:03]} 9. exd5 {[%emt 0:01:08]} Nxd5
{[%emt 0:13:14]} 10. Nxd5 {[%emt 0:05:33]} Nxd4 {[%emt 0:11:21]} 11. Bxd4 {
[%emt 0:00:53]} Qxd5 {[%emt 0:00:22]} 12. Bxg7 {[%emt 0:00:48]} Qxd1 {[%emt 0:
00:00]} 13. Raxd1 {[%emt 0:00:07]} Kxg7 {[%emt 0:00:05]} 14. Rd2 {[%emt 0:00:
00]} h5 {[%emt 0:03:27]} 15. Rfd1 {[%emt 0:00:52]} Be6 {[%emt 0:21:39]} 16. Bf3
{[%emt 0:00:30]} Rab8 {[%emt 0:00:11]} 17. Kf1 {[%emt 0:12:25]} Rfc8 {[%emt 0:
00:00]} 18. Rc1 {[%emt 0:05:39]} Rc7 {[%emt 0:11:50]} 19. b3 {[%emt 0:00:58]}
Rbc8 {[%emt 0:00:17]} 20. a4 {[%emt 0:02:31]} Bxb3 {[%emt 0:01:26]} 21. Rb1 {
[%emt 0:03:06]} Bxa4 {[%emt 0:02:25]} 22. Rxb7 {[%emt 0:00:06]} Rxb7 {[%emt 0:
00:00]} 23. Bxb7 {[%emt 0:00:06]} Rxc2 {[%emt 0:00:25]} 24. Rxc2 {[%emt 0:00:
00]} Bxc2 {[%emt 0:00:05]} 25. Ba6 {[%emt 0:00:09]} f5 {[%emt 0:00:43]} 26. Ke2
{[%emt 0:00:18]} Kf6 {[%emt 0:00:11]} 27. Ke3 {[%emt 0:00:14]} e5 {[%emt 0:00:
00]} 28. g3 {[%emt 0:00:19]} g5 {[%emt 0:01:06]} 29. h3 {[%emt 0:01:07]} f4+ {
[%emt 0:00:20]} 30. gxf4 {[%emt 0:00:27]} exf4+ {[%emt 0:00:06]} 31. Kd4 {
[%emt 0:01:13]} Bf5 {[%emt 0:00:30]} 32. Bf1 {[%emt 0:00:10]} a5 {[%emt 0:00:
00]} 33. Kc4 {[%emt 0:01:07]} Ke5 {[%emt 0:00:16]} 0-1

[Event "44th Chess Olympiad Women 2022"]
[Site "Chennai"]
[Date "2022.07.31"]
[Round "3.66"]
[White "Bah, Mariama Djelo"]
[Black "Pio Monteiro, Juliana"]
[Result "0-1"]
[WhiteElo "1008"]
[BlackElo "1319"]
[Annotator "NA RC"]
[PlyCount "63"]
[EventDate "2022.??.??"]
[TimeControl "60"]

1. e4 {[%emt 0:00:13]} c5 {[%emt 0:00:06]} 2. Nf3 {[%emt 0:00:22]} d6 {[%emt 0:
00:00]} 3. Bb5+ {[%emt 0:01:27]} Bd7 {[%emt 0:00:34]} 4. Nc3 {[%emt 0:01:11]}
Bxb5 {[%emt 0:01:28]} 5. Nxb5 {[%emt 0:00:56]} a6 {[%emt 0:00:22]} 6. Nc3 {
[%emt 0:01:40]} Nf6 {[%emt 0:01:05]} 7. d3 {[%emt 0:00:57]} Nc6 {[%emt 0:01:18]
} 8. Bg5 {[%emt 0:02:32]} e6 {[%emt 0:01:07]} 9. Qd2 {[%emt 0:02:59]} Be7 {
[%emt 0:01:00]} 10. O-O {[%emt 0:02:13]} O-O {[%emt 0:00:07]} 11. Rfe1 {
[%emt 0:02:39]} b5 {[%emt 0:02:47]} 12. a4 {[%emt 0:06:08]} b4 {[%emt 0:02:37]}
13. Nb1 {[%emt 0:08:44]} Rb8 {[%emt 0:03:42]} 14. e5 {[%emt 0:06:50]} dxe5 {
[%emt 0:03:36]} 15. Nxe5 {[%emt 0:01:05]} Nxe5 {[%emt 0:00:48]} 16. Rxe5 {
[%emt 0:02:01]} Qd4 {[%emt 0:02:23]} 17. Qf4 {[%emt 0:03:42]} Qxb2 {[%emt 0:00:
00]} 18. Re1 {[%emt 0:17:04]} Qxa1 {[%emt 0:01:03]} 19. h3 {[%emt 0:03:39]} Qd4
{[%emt 0:02:27]} 20. Qc7 {[%emt 0:07:48]} Rfe8 {[%emt 0:03:24]} 21. Qg3 {
[%emt 0:07:05]} Nh5 {[%emt 0:02:13]} 22. Qg4 {[%emt 0:02:40]} Qxg4 {[%emt 0:00:
00]} 23. hxg4 {[%emt 0:00:44]} Bxg5 {[%emt 0:00:19]} 24. Re5 {[%emt 0:02:26]}
f6 {[%emt 0:00:52]} 25. Rxc5 {[%emt 0:01:17]} Nf4 {[%emt 0:00:34]} 26. Nd2 {
[%emt 0:01:30]} Ne2+ {[%emt 0:00:32]} 27. Kf1 {[%emt 0:03:43]} Bxd2 {[%emt 0:
00:00]} 28. Kxe2 {[%emt 0:00:57]} Bc3 {[%emt 0:00:17]} 29. f4 {[%emt 0:02:35]}
e5 {[%emt 0:00:44]} 30. Kf3 {[%emt 0:02:39]} exf4 {[%emt 0:00:24]} 31. Kxf4 {
[%emt 0:01:48]} Re2 {[%emt 0:00:09]} 32. Kf5 {[%emt 0:00:00]} 0-1

[Event "44th Chess Olympiad Women 2022"]
[Site "Chennai"]
[Date "2022.07.31"]
[Round "3.67"]
[White "Dotse Dzidzor Esi"]
[Black "Benson, Maud"]
[Result "1-0"]
[WhiteElo "1195"]
[BlackElo "1334"]
[Annotator "NA RC"]
[PlyCount "91"]
[EventDate "2022.??.??"]
[TimeControl "60"]

1. d4 {[%emt 0:00:03]} d5 {[%emt 0:00:27]} 2. c4 {[%emt 0:00:11]} dxc4 {
[%emt 0:02:27]} 3. Nc3 {[%emt 0:00:13]} Bf5 {[%emt 0:01:53]} 4. Bf4 {[%emt 0:
00:00]} e6 {[%emt 0:03:14]} 5. e3 {[%emt 0:00:48]} Bb4 {[%emt 0:03:15]} 6. Bxc4
{[%emt 0:01:13]} c6 {[%emt 0:02:01]} 7. Qb3 {[%emt 0:02:35]} a5 {[%emt 0:03:53]
} 8. Nf3 {[%emt 0:03:44]} b5 {[%emt 0:03:05]} 9. Be2 {[%emt 0:00:41]} a4 {
[%emt 0:00:58]} 10. Qxb4 {[%emt 0:02:40]} h6 {[%emt 0:02:47]} 11. O-O {[%emt 0:
00:00]} Nd7 {[%emt 0:10:45]} 12. a3 {[%emt 0:02:13]} Ngf6 {[%emt 0:05:40]} 13.
h3 {[%emt 0:01:04]} Nb8 {[%emt 0:05:01]} 14. Bxb8 {[%emt 0:01:50]} Rxb8 {
[%emt 0:00:21]} 15. Ne5 {[%emt 0:00:43]} Rc8 {[%emt 0:01:39]} 16. Nxb5 {
[%emt 0:06:49]} Nd5 {[%emt 0:21:40]} 17. Nd6+ {[%emt 0:09:13]} Ke7 {[%emt 0:00:
00]} 18. Nxc8+ {[%emt 0:01:23]} Kf6 {[%emt 0:00:15]} 19. Qxa4 {[%emt 0:02:36]}
Qxc8 {[%emt 0:01:23]} 20. Qxc6 {[%emt 0:01:38]} Qd8 {[%emt 0:04:11]} 21. Qd7 {
[%emt 0:00:44]} Qf8 {[%emt 0:01:32]} 22. Rac1 {[%emt 0:02:45]} g6 {[%emt 0:00:
00]} 23. Rc6 {[%emt 0:04:29]} h5 {[%emt 0:01:47]} 24. Rfc1 {[%emt 0:00:29]} g5
{[%emt 0:00:47]} 25. Rc8 {[%emt 0:00:21]} Qg7 {[%emt 0:01:28]} 26. Rxh8 {
[%emt 0:00:16]} g4 {[%emt 0:00:21]} 27. hxg4 {[%emt 0:01:47]} Bxg4 {[%emt 0:00:
00]} 28. Bxg4 {[%emt 0:00:21]} hxg4 {[%emt 0:00:35]} 29. Qd8+ {[%emt 0:02:53]}
Ne7 {[%emt 0:01:50]} 30. g3 {[%emt 0:00:10]} Kf5 {[%emt 0:01:36]} 31. Rh4 {
[%emt 0:02:34]} f6 {[%emt 0:01:45]} 32. Nxg4 {[%emt 0:02:28]} Ng6 {[%emt 0:00:
00]} 33. Qxf6+ {[%emt 0:02:10]} Qxf6 {[%emt 0:00:18]} 34. Nxf6 {[%emt 0:00:08]}
Kxf6 {[%emt 0:00:59]} 35. Rh6 {[%emt 0:00:28]} Kg5 {[%emt 0:00:12]} 36. Rh1 {
[%emt 0:00:19]} Kf5 {[%emt 0:00:12]} 37. b4 {[%emt 0:00:38]} Ke4 {[%emt 0:00:
00]} 38. b5 {[%emt 0:00:38]} Kf3 {[%emt 0:00:31]} 39. b6 {[%emt 0:00:18]} Nf8 {
[%emt 0:00:05]} 40. Rc7 {[%emt 0:00:29]} e5 {[%emt 0:00:23]} 41. dxe5 {[%emt 0:
00:00]} Ne6 {[%emt 0:30:41]} 42. Rf7+ {[%emt 0:00:09]} Ke4 {[%emt 0:00:06]} 43.
b7 {[%emt 0:00:29]} Nd8 {[%emt 0:00:09]} 44. b8=Q {[%emt 0:00:45]} Nxf7 {
[%emt 0:00:04]} 45. Qb7+ {[%emt 0:00:18]} Kxe5 {[%emt 0:00:08]} 46. Qxf7 {
[%emt 0:00:27]} 1-0

[Event "44th Chess Olympiad Women 2022"]
[Site "Chennai"]
[Date "2022.07.31"]
[Round "3.71"]
[White "Alazmi, Amani"]
[Black "Nema, Rabab Ahmed"]
[Result "1-0"]
[WhiteElo "1506"]
[BlackElo "1172"]
[Annotator "NA RC"]
[PlyCount "61"]
[EventDate "2022.??.??"]
[TimeControl "60"]

1. e4 {[%emt 0:00:02]} c5 {[%emt 0:00:28]} 2. Bc4 {[%emt 0:00:19]} Nf6 {
[%emt 0:01:40]} 3. e5 {[%emt 0:00:40]} Ng4 {[%emt 0:00:53]} 4. Qxg4 {[%emt 0:
00:00]} Nc6 {[%emt 0:02:18]} 5. Qh5 {[%emt 0:00:55]} Qc7 {[%emt 0:05:21]} 6.
Nf3 {[%emt 0:01:29]} g6 {[%emt 0:02:43]} 7. Qg5 {[%emt 0:00:23]} Bg7 {[%emt 0:
00:00]} 8. O-O {[%emt 0:00:28]} h6 {[%emt 0:04:43]} 9. Qe3 {[%emt 0:00:23]} d6
{[%emt 0:06:12]} 10. exd6 {[%emt 0:00:37]} Qxd6 {[%emt 0:00:51]} 11. Nc3 {
[%emt 0:00:26]} Bg4 {[%emt 0:01:51]} 12. Nb5 {[%emt 0:00:29]} Qf6 {[%emt 0:00:
00]} 13. Nc7+ {[%emt 0:00:22]} Kd7 {[%emt 0:03:13]} 14. Nxa8 {[%emt 0:02:21]}
Rxa8 {[%emt 0:02:58]} 15. Qxc5 {[%emt 0:01:39]} b6 {[%emt 0:02:20]} 16. Qd5+ {
[%emt 0:01:03]} Qd6 {[%emt 0:04:10]} 17. Qxf7 {[%emt 0:01:47]} Bd4 {[%emt 0:00:
00]} 18. c3 {[%emt 0:01:28]} Bc5 {[%emt 0:02:16]} 19. d4 {[%emt 0:00:12]} Nxd4
{[%emt 0:03:22]} 20. cxd4 {[%emt 0:00:20]} Bxd4 {[%emt 0:00:07]} 21. Nxd4 {
[%emt 0:00:35]} Qxd4 {[%emt 0:01:02]} 22. Bxh6 {[%emt 0:00:04]} Rh8 {[%emt 0:
00:00]} 23. Bg7 {[%emt 0:01:05]} Qc5 {[%emt 0:08:20]} 24. Bxh8 {[%emt 0:00:20]}
b5 {[%emt 0:00:36]} 25. Rad1+ {[%emt 0:00:26]} Kc6 {[%emt 0:01:09]} 26. Bd5+ {
[%emt 0:00:20]} Kb6 {[%emt 0:02:47]} 27. Bd4 {[%emt 0:00:09]} e5 {[%emt 0:00:
00]} 28. Qb7+ {[%emt 0:00:32]} Ka5 {[%emt 0:00:53]} 29. Bxc5 {[%emt 0:00:17]}
b4 {[%emt 0:07:18]} 30. Qxb4+ {[%emt 0:00:28]} Ka6 {[%emt 0:00:19]} 31. Bc4# {
[%emt 0:00:03]} 1-0

[Event "44th Chess Olympiad Women 2022"]
[Site "Chennai"]
[Date "2022.07.31"]
[Round "3.75"]
[White "Inthavong, Maly"]
[Black "Shariff, Sasha Christina"]
[Result "1-0"]
[WhiteElo "1231"]
[BlackElo "1183"]
[Annotator "NA"]
[PlyCount "95"]
[EventDate "2022.??.??"]
[TimeControl "60"]

1. e4 {[%emt 0:00:03]} e5 {[%emt 0:00:10]} 2. Nf3 {[%emt 0:00:12]} Nc6 {
[%emt 0:00:33]} 3. d3 {[%emt 0:00:55]} Nf6 {[%emt 0:01:35]} 4. c3 {[%emt 0:00:
00]} d6 {[%emt 0:09:12]} 5. Be2 {[%emt 0:00:58]} Be6 {[%emt 0:01:31]} 6. Bg5 {
[%emt 0:02:41]} h6 {[%emt 0:00:22]} 7. Bh4 {[%emt 0:00:28]} Be7 {[%emt 0:02:51]
} 8. O-O {[%emt 0:03:25]} Qd7 {[%emt 0:02:57]} 9. Nbd2 {[%emt 0:02:02]} O-O-O {
[%emt 0:03:11]} 10. b4 {[%emt 0:00:31]} a6 {[%emt 0:03:15]} 11. a4 {[%emt 0:00:
00]} g5 {[%emt 0:05:04]} 12. Bg3 {[%emt 0:02:38]} Nh5 {[%emt 0:01:35]} 13. b5 {
[%emt 0:01:59]} Nxg3 {[%emt 0:01:34]} 14. bxc6 {[%emt 0:01:27]} Nxe2+ {[%emt 0:
00:00]} 15. Qxe2 {[%emt 0:00:21]} Qxc6 {[%emt 0:00:29]} 16. c4 {[%emt 0:00:57]}
g4 {[%emt 0:04:16]} 17. Ne1 {[%emt 0:02:43]} h5 {[%emt 0:03:46]} 18. f3 {
[%emt 0:03:26]} Rdf8 {[%emt 0:01:26]} 19. Kh1 {[%emt 0:02:50]} Qb6 {[%emt 0:00:
00]} 20. Qd1 {[%emt 0:03:50]} f5 {[%emt 0:05:53]} 21. a5 {[%emt 0:07:39]} Qa7 {
[%emt 0:03:05]} 22. Nc2 {[%emt 0:01:27]} fxe4 {[%emt 0:08:22]} 23. fxe4 {
[%emt 0:02:16]} Bg5 {[%emt 0:04:48]} 24. Nb4 {[%emt 0:06:42]} Rf2 {[%emt 0:00:
00]} 25. Rxf2 {[%emt 0:03:31]} Qxf2 {[%emt 0:00:13]} 26. Nf1 {[%emt 0:00:33]}
Bh4 {[%emt 0:04:14]} 27. Ra2 {[%emt 0:00:46]} Qf7 {[%emt 0:01:32]} 28. Ne3 {
[%emt 0:05:42]} Rf8 {[%emt 0:02:05]} 29. Nbd5 {[%emt 0:01:48]} Bxd5 {[%emt 0:
00:00]} 30. cxd5 {[%emt 0:00:10]} c6 {[%emt 0:02:09]} 31. Rc2 {[%emt 0:00:20]}
Kd7 {[%emt 0:03:20]} 32. dxc6+ {[%emt 0:00:32]} bxc6 {[%emt 0:00:15]} 33. Nf5 {
[%emt 0:00:16]} d5 {[%emt 0:00:47]} 34. g3 {[%emt 0:00:51]} Bg5 {[%emt 0:01:54]
} 35. Rb2 {[%emt 0:00:38]} Kc7 {[%emt 0:03:22]} 36. Qg1 {[%emt 0:00:54]} d4 {
[%emt 0:02:10]} 37. Qb1 {[%emt 0:00:19]} Qf6 {[%emt 0:07:24]} 38. Rb7+ {
[%emt 0:01:21]} Kc8 {[%emt 0:01:21]} 39. Rb8+ {[%emt 0:00:14]} Kd7 {[%emt 0:00:
00]} 40. Qb7+ {[%emt 0:01:08]} Ke6 {[%emt 0:00:09]} 41. Qxc6+ {[%emt 0:30:11]}
Kf7 {[%emt 0:30:52]} 42. Rxf8+ {[%emt 0:02:52]} Kxf8 {[%emt 0:00:43]} 43. Qc8+
{[%emt 0:00:46]} Kf7 {[%emt 0:01:07]} 44. Qd7+ {[%emt 0:02:24]} Kg6 {[%emt 0:
00:00]} 45. Qe8+ {[%emt 0:00:15]} Qf7 {[%emt 0:00:24]} 46. Qc6+ {[%emt 0:00:59]
} Qf6 {[%emt 0:00:43]} 47. Ne7+ {[%emt 0:00:53]} Kh6 {[%emt 0:00:19]} 48. Ng8+
{[%emt 0:00:23]} 1-0